Cogmind - Beta 15 @@@ ROGUE MODE // 2025.05.06 @ 04:07:51 Player: cptwinky Result: Escaped! Performance ------------- Evolutions (9) 4500 Regions Visited (10) 2000 Robots Destroyed (58) 290 Value Destroyed (1981) 1981 Prototype IDs (23) 460 Alien Tech Used (1) 200 Bonus (2926) 2926 TOTAL SCORE: 12357 Bonus ------- Win 3000 Friendly Fire -74 Cogmind --------- Core Integrity 186/1600 Matter 236/300 Energy 99/100 System Corruption 9% Temperature Cool (0) Movement Core (50) Location To Epsilon Eridani Parts ------- > --- POWER (2) -------- (None) > --- PROPULSION (8) --- Centrium Leg > --- UTILITY (12) ----- Triangulator Advanced Signal Interpreter Core Analyzer Improved Power Shielding System Shield > --- WEAPON (3) ------- (None) > --- INVENTORY (5) ---- Light Quantum Reactor Enhanced Nova Cannon Multitool Sigix Broadsword Peak State ------------ > --- POWER ------------ (None) > --- PROPULSION ------- Armored Heavy Treads Improved Heavy Siege Treads Improved Heavy Siege Treads > --- UTILITY ---------- Advanced Sensor Array Advanced Signal Interpreter Improved Terrain Scan Processor Improved Target Analyzer Core Analyzer Improved Power Shielding Centrium Light Armor Plating Improved System Shield > --- WEAPON ----------- Nova Cannon Sigix Broadsword > --- INVENTORY -------- Advanced Sensor Array Improved System Restoration Module Enhanced Nova Cannon Multitool [Rating: 125] Favorites ----------- Power Subdweller Power Source Engine Subdweller Power Source Power Core Constructs Reactor Micro Antimatter Reactor Propulsion Light Treads Treads Light Treads Leg Constructs Hover Unit Gyrokinetic Inverter Flight Unit Impulse Thruster Array Utility High-capacity Storage Unit Device Seismic Detector Storage High-capacity Storage Unit Processor Improved Target Analyzer Hackware System Shield Protection Medium Armor Plating Weapon Shotgun Energy Gun Medium Laser Energy Cannon Constructs Ballistic Gun Shotgun Launcher Heavy Rocket Launcher Special Weapon Mining Laser Impact Weapon Flail Slashing Weapon Sigix Broadsword Build | -11 -10 -10 -7 -5 -4 -3 -2 -2 -2 -1 ------- Run | Yrd Mat Sub Rec Fac Fac Res Res Qua Frg Acc Slots Evolved 18 | . . . . 10 2 2 2 . . 2 Power 1 | . . . . 1 . . . . . . Propulsion 6 | . . . . 2 1 2 1 . . . Utility 10 | . . . . 6 1 . 1 . . 2 Weapon 1 | . . . . 1 . . . . . . Parts Attached 90 | 6 8 6 3 19 2 21 2 2 . 21 Power 8 | 1 1 1 . 4 . 1 . . . . Engine 5 | 1 1 1 . 2 . . . . . . Core 2 | . . . . 2 . . . . . . Reactor 1 | . . . . . . 1 . . . . Propulsion 28 | 2 1 2 . . . 6 2 1 . 14 Treads 15 | 2 1 2 . . . 2 2 . . 6 Leg 7 | . . . . . . . . . . 7 Wheel . | . . . . . . . . . . . Hover 3 | . . . . . . 1 . 1 . 1 Flight 3 | . . . . . . 3 . . . . Utility 40 | 1 3 1 2 13 1 13 . . . 6 Device 19 | . 1 . 1 9 . 4 . . . 4 Storage 2 | 1 1 . . . . . . . . . Processor 7 | . . . . 3 1 3 . . . . Hackware 5 | . . . . . . 3 . . . 2 Protection 7 | . 1 1 1 1 . 3 . . . . Artifact . | . . . . . . . . . . . Weapon 14 | 2 3 2 1 2 1 1 . 1 . 1 Energy Gun 2 | 1 . . . 1 . . . . . . Energy Cannon 3 | . . 1 . . . 1 . . . 1 Ballistic Gun 3 | 1 2 . . . . . . . . . Ballistic Cannon . | . . . . . . . . . . . Launcher 1 | . . . . 1 . . . . . . Special Weapon 3 | . 1 1 1 . . . . . . . Impact Weapon 1 | . . . . . 1 . . . . . Slashing Weapon 1 | . . . . . . . . 1 . . Piercing Weapon . | . . . . . . . . . . . Special Melee Weapon . | . . . . . . . . . . . Unidentified Prototypes 4 | . . . 1 1 . 1 . 1 . . Parts Lost 58 | . . 2 1 19 3 10 . 2 5 16 Power 4 | . . . . 4 . . . . . . Propulsion 24 | . . 1 . 4 . 3 . . 4 12 Utility 26 | . . 1 1 9 1 7 . 2 1 4 Weapon 4 | . . . . 2 2 . . . . . Highest Loss Streak 6 | . . 1 1 5 3 3 . 2 4 6 To Critical Strikes . | . . . . . . . . . . . Average Backups 10 | 4 8 16 13 4 4 4 4 3 4 3 Power . | . . 1 . . . . . . . . Propulsion 1 | 1 1 1 1 . . . 1 . . . Utility 5 | . 4 8 7 2 2 1 1 1 1 . Weapon 1 | 1 2 3 2 . . . 1 1 2 1 Tool/Special . | . . . . . . . . . . . Unused Backups 26 | . 6 3 11 2 1 1 . . . 2 Power 4 | . . 2 1 . . . . . . 1 Propulsion 6 | . 4 . 2 . . . . . . . Utility 12 | . 1 . 7 2 1 . . . . 1 Weapon 3 | . 1 1 1 . . . . . . . Tool/Special 1 | . . . . . . 1 . . . . Average Slot Usage (%) 75 | . 99 100 86 45 21 42 39 46 41 34 Engine 8 | . 14 14 12 . . . . . . . Treads 18 | . 28 28 22 3 . . 1 13 10 4 Device 7 | . 4 8 3 14 3 3 4 2 . 3 Storage 8 | . 14 14 10 3 . . . . . . Processor 3 | . . . . 4 13 18 17 17 17 9 Protection 5 | . 9 5 10 2 . 4 8 7 4 4 Ballistic Gun 14 | . 22 25 20 1 . . . . . . Special Weapon 1 | . . 2 . . . . . . . . Peak Build Rating 125 | 6 11 17 34 65 42 72 74 125 93 99 Average Rating 28 | 5 9 12 20 47 28 51 53 94 79 60 On Entrance 32 | . 6 11 17 34 30 16 48 74 93 24 Naked Turns . | . . . . . . . . . . . Heaviest Build 67 | 12 58 58 58 67 7 15 6 28 2 3 Greatest Support 210 | 40 40 40 40 32 3 16 11 210 3 3 Greatest Overweight (x) 5 | . 1 1 1 5 2 1 1 1 . . Average Overweight (x) . | . . 1 . 1 . . . . . . Largest Inventory Capacity 20 | 8 20 20 20 20 5 5 5 5 5 5 Average Capacity 14 | 7 12 20 15 14 5 5 5 5 5 5 Most Carried 20 | 8 12 20 20 7 5 5 5 5 5 5 Average Carried 11 | 4 8 17 15 4 4 4 5 4 5 4 Final Capacity 20 | 8 20 20 5 5 5 5 5 5 5 5 Final Carried 20 | 8 12 20 5 5 4 5 5 5 5 5 Scrap Engine Consumption 41 | . . . 23 17 1 . . . . . Constructs Created 7 | . . . 3 4 . . . . . . Constructs Modified 8 | . . . 6 2 . . . . . . Class Distribution -------------------- 89% | Mutant 4% | Hacker-Mutant 3% | Construct Dominant Class ---------------- Mutant | -10/Materials Mutant | -10/Subcaves Mutant | -7/Recycling Mutant | -5/Factory Mutant | -4/Factory Mutant | -3/Research Mutant | -2/Research Mutant | -2/Quarantine Mutant | -2/Protoforge Mutant | -1/Access Resources | -11 -10 -10 -7 -5 -4 -3 -2 -2 -2 -1 ----------- Run | Yrd Mat Sub Rec Fac Fac Res Res Qua Frg Acc Matter Collected 2101 | 208 488 247 288 582 . . . . . 288 Remotely . | . . . . . . . . . . . Salvage Created 2192 | 21 488 291 263 1007 . . . . . 122 Parts 126 | 4 35 17 13 51 . . . . . 6 Haulers Intercepted . | . . . . . . . . . . . Recyclers Shooed 7 | . . . . 7 . . . . . . Parts Field Recycled . | . . . . . . . . . . . Retrieved Matter . | . . . . . . . . . . . Parts Self-Destructed 7 | . . 7 . . . . . . . . Prevented . | . . . . . . . . . . . Kills | -11 -10 -10 -7 -5 -4 -3 -2 -2 -2 -1 ------- Run | Yrd Mat Sub Rec Fac Fac Res Res Qua Frg Acc Combat Hostiles Destroyed 46 | . 15 8 2 19 . . . . . 2 Melee 1 | . . . . . . . . . . 1 Guns 37 | . 15 8 2 12 . . . . . . Cannons 2 | . . . . 1 . . . . . 1 AOE 4 | . . . . 4 . . . . . . Classes Destroyed 17 | 1 3 3 2 8 . . . . . . Worker 1 | . . . . 1 . . . . . . Builder 2 | . . . . 2 . . . . . . Tunneler 1 | 1 . . . . . . . . . . Recycler 4 | . . . 2 2 . . . . . . Operator 2 | . 2 . . . . . . . . . Watcher 2 | . . . . 2 . . . . . . Swarmer 16 | . 6 2 . 8 . . . . . . Saboteur 1 | . . . . 1 . . . . . . Grunt 11 | . 9 . . 2 . . . . . . Duelist 1 | . . . . 1 . . . . . . Sentry 1 | . . 1 . . . . . . . . Specialist 1 | . . . . 1 . . . . . . Hunter 5 | . . . . 3 . . . . . 2 Programmer 3 | . . . . 3 . . . . . . Artisan 1 | . . 1 . . . . . . . . Subdweller 5 | . . 5 . . . . . . . . Scrapper 2 | . . . 2 . . . . . . . Best Kill Streak 6 | 1 4 2 1 6 . . . . . 1 Combat Bots Only 4 | . 4 2 1 4 . . . . . 1 Max Kills in Single Turn 3 | 1 2 2 1 3 . . . . . 1 Gunslinging 1 | . 1 . . . . . . . . . Exploded 3 | . . . . 3 . . . . . . Melee 1 | . . . . . . . . . . 1 Uniques/NPCs Destroyed . | . . . . . . . . . . . Combat | -11 -10 -10 -7 -5 -4 -3 -2 -2 -2 -1 -------- Run | Yrd Mat Sub Rec Fac Fac Res Res Qua Frg Acc Hostile Shots Fired 1191 | . 53 35 13 217 88 151 10 151 34 439 Missed 440 | . 19 8 2 62 33 70 4 51 12 179 Hits 751 | . 34 27 11 155 55 81 6 100 22 260 Melee 2 | . . . . 2 . . . . . . Projectile 749 | . 34 27 11 153 55 81 6 100 22 260 AOE 4 | . . . . 2 . . . . . 2 Critical Strikes 27 | . 1 . . 7 . 6 . 4 . 9 Part Disruptions 1 | . . . . 1 . . . . . . Damage Taken 15381 | . 340 457 289 2892 826 1745 160 2287 517 5868 Core 4003 | . 64 69 42 814 497 563 139 211 190 1414 Absorbed by Shields . | . . . . . . . . . . . Regen/Repaired (Parts) 73 | . . . . 67 . . . . . 6 Core Remaining (%) 47 | 100 . . 30 18 56 56 . . 62 11 Volleys Fired 191 | 1 32 40 12 91 6 1 . 1 . 7 Largest 2 | 2 2 2 2 2 1 1 . 1 . 1 Hottest 235 | 70 100 100 61 235 65 113 . 113 . 120 Shots Fired 267 | 2 62 56 20 112 6 1 . 1 . 7 Gun 187 | 2 60 32 16 71 6 . . . . . Cannon 53 | . . 6 4 34 . 1 . 1 . 7 Launcher 7 | . . . . 7 . . . . . . Special 20 | . 2 18 . . . . . . . . Kinetic 137 | 1 50 32 16 38 . . . . . . Thermal 102 | 1 12 24 4 46 6 1 . 1 . 7 Explosive 7 | . . . . 7 . . . . . . Electromagnetic 21 | . . . . 21 . . . . . . Robot Hit Streak 14 | 1 7 14 10 11 . . . . . 1 Robot Miss Streak 5 | . 3 5 3 3 . . . . . 1 Penetration Max 1 | . . . . 1 . . . . . . Secondary Targets 4 | . 3 1 . . . . . . . . Max Gunslinging Chain 1 | . 1 1 . . . . . . . . Shots Hit Robots 182 | 1 45 35 16 84 . . . . . 1 Core Hits 130 | 1 31 20 11 61 1 . . . . 5 Critical Kills . | . . . . . . . . . . . Critical Parts Destroyed . | . . . . . . . . . . . Critical Strikes 5 | . . 1 . 4 . . . . . . Burn 4 | . . . . 4 . . . . . . Destroy 1 | . . 1 . . . . . . . . Melee Attacks 5 | . . . . . 5 . . . . . Impact 5 | . . . . . 5 . . . . . Slashing . | . . . . . . . . . . . Piercing . | . . . . . . . . . . . Sneak Attacks . | . . . . . . . . . . . Combat Hostiles . | . . . . . . . . . . . Follow-up Attacks . | . . . . . . . . . . . Damage Inflicted 4524 | 11 661 532 271 2736 57 . . 1 8 247 Guns 2514 | 11 657 478 194 1145 29 . . . . . Cannons 943 | . . . 65 833 . . . . . 45 Explosions 942 | . . . . 754 . . . . . 188 Melee . | . . . . . . . . . . . Ramming 71 | . 4 . 12 4 28 . . 1 8 14 Kinetic 1868 | 11 567 478 194 618 . . . . . . Thermal 1098 | . 90 54 65 627 29 . . . . 233 Explosive 754 | . . . . 754 . . . . . . Electromagnetic 733 | . . . . 733 . . . . . . Impact . | . . . . . . . . . . . Slashing . | . . . . . . . . . . . Piercing . | . . . . . . . . . . . Highest Corruption 9 | . . . . 4 . 9 . . . 9 Average Corruption 4 | . . . . 3 . 5 . . . 6 Corruption Purged 2 | . . . . 2 . . . . . . Corruption Blocked . | . . . . . . . . . . . Effects 23 | . . . . 16 . 4 . . . 3 Message Errors 3 | . . . . 2 . 1 . . . . Matter Fused 7 | . . . . 5 . 1 . . . 1 Heat Flow Errors 5 | . . . . 3 . 1 . . . 1 Energy Discharges 2 | . . . . 1 . . . . . 1 Data Loss (minor) 4 | . . . . 3 . 1 . . . . Misfires 1 | . . . . 1 . . . . . . Weapon Failures 1 | . . . . 1 . . . . . . Overload Shots . | . . . . . . . . . . . Overflow Damage 22 | . . . . 22 . . . . . . Projectiles 9 | . . . . 9 . . . . . . Explosions 13 | . . . . 13 . . . . . . Melee . | . . . . . . . . . . . Knockbacks 1 | . 1 . . . . . . . . . Impact 1 | . 1 . . . . . . . . . Kinetic . | . . . . . . . . . . . Secondary . | . . . . . . . . . . . Self-Inflicted Damage 140 | . . . . 38 14 . . . . 88 Shots 3 | . . . . 2 . . . . . 1 Rammed 19 | . 1 . 1 2 3 1 . 1 3 7 Targets Rammed 25 | . 1 . 1 2 3 1 . 1 3 13 Kicked 5 | . . . . . . . . . . 5 Crushed 1 | . . . . . . . . . . 1 Highest Temperature 496 | 9 180 . 124 496 . 60 . . . 211 Average Temperature 92 | 6 51 . 41 126 . 29 . . . 51 Received Heat Transfer 1464 | . 156 51 132 474 . 93 18 90 135 315 Effects 6 | . . . . 6 . . . . . . Shutdowns 2 | . . . . 2 . . . . . . Energy Bleed 2 | . . . . 2 . . . . . . Matter Decay 1 | . . . . 1 . . . . . . Damage (major) 1 | . . . . 1 . . . . . . Siege Activations . | . . . . . . . . . . . Martial Activations . | . . . . . . . . . . . Shielding Activations . | . . . . . . . . . . . Robots Disrupted 2 | . . . . 2 . . . . . . Combat Hostiles 2 | . . . . 2 . . . . . . Robots Corrupted 1 | . . . . 1 . . . . . . Combat Hostiles 1 | . . . . 1 . . . . . . Parts Fried 6 | . . . . 6 . . . . . . Impact Corruptions . | . . . . . . . . . . . Robots Melted 1 | . . . . 1 . . . . . . Combat Hostiles 1 | . . . . 1 . . . . . . Parts Melted 5 | . 1 . . 4 . . . . . . Heat Transferred 2394 | . 259 185 259 1517 37 . . . . 137 Parts Sabotaged . | . . . . . . . . . . . Parts Stolen . | . . . . . . . . . . . Parts Stripped . | . . . . . . . . . . . Power Chain Reactions . | . . . . . . . . . . . Alert | -11 -10 -10 -7 -5 -4 -3 -2 -2 -2 -1 ------- Run | Yrd Mat Sub Rec Fac Fac Res Res Qua Frg Acc Maximum Alert Level 2 | . . . . 1 . . . . . 2 Low Security (%) 95 | 100 100 . 100 97 100 100 100 100 100 70 Level 1 3 | . . . . 2 . . . . . 28 Level 2 . | . . . . . . . . . . 1 Level 3 . | . . . . . . . . . . . Level 4 . | . . . . . . . . . . . Level 5 . | . . . . . . . . . . . High Security . | . . . . . . . . . . . Max Security . | . . . . . . . . . . . Peak Influence 520 | 5 193 . 50 207 72 74 46 95 54 520 Initial 150 | . . . 1 150 72 12 41 14 47 28 Average 55 | . 98 . 2 71 47 11 37 12 43 127 Influence Increases 2855 | 5 432 75 89 864 41 255 15 135 72 872 Destroy 0b10 Robot/C 780 | . 300 60 . 380 . . . . . 40 Destroy 0b10 Robot/NC 60 | 5 10 . 10 35 . . . . . . Destroy Leader 144 | . 60 . . 74 . . . . . 10 Successful Hack 108 | . 30 . 18 24 9 . . . 27 . Select Force Hacks 90 | . 30 . 60 . . . . . . . Disable Machine 105 | . . . . 15 15 15 . 15 . 45 Destroy Structure 143 | . 2 . 1 66 2 . . . . 72 Advance Influence 150 | . . . . 150 . . . . . . Partial Spotted 45 | . . . . 15 . 15 15 . . . Lose Combat Pursuer 1230 | . . 15 . 105 15 225 . 120 45 705 Influence Decreases 2335 | 5 318 186 92 715 167 204 63 76 108 401 Entered New Map 249 | . . 55 2 . 77 11 33 12 38 21 Time Decay 1566 | 5 318 131 90 535 60 88 30 59 20 230 Lost Part 455 | . . . . 160 30 60 . 5 50 150 Lost Ally 20 | . . . . 20 . . . . . . Purge Threat 45 | . . . . . . 45 . . . . Squads Dispatched 27 | . 4 . . 6 2 2 . 2 2 9 Investigation 12 | . 2 . . 1 2 1 . 1 1 4 Extermination 8 | . . . . 2 . 1 . 1 . 4 Reinforcement 5 | . 2 . . 1 . . . . 1 1 Assault 2 | . . . . 2 . . . . . . Garrison . | . . . . . . . . . . . Intercept . | . . . . . . . . . . . Searches Triggered . | . . . . . . . . . . . Construction Impeded . | . . . . . . . . . . . Haulers Reinforced . | . . . . . . . . . . . Active Scanning Responses . | . . . . . . . . . . . Cargo Convoy Interrupts 1 | . . . . 1 . . . . . . Stealth | -11 -10 -10 -7 -5 -4 -3 -2 -2 -2 -1 --------- Run | Yrd Mat Sub Rec Fac Fac Res Res Qua Frg Acc Distress Signals 12 | . . . 1 2 1 3 . . . 5 Communications Jammed . | . . . . . . . . . . . Distress Signals . | . . . . . . . . . . . Times Spotted 215 | . 22 9 3 40 9 27 1 19 16 69 Peak Tracking Total 23 | . 6 3 2 10 8 10 1 13 14 23 Tactical Retreats 30 | . . 1 . 5 1 8 . 3 1 11 Traps | -11 -10 -10 -7 -5 -4 -3 -2 -2 -2 -1 ------- Run | Yrd Mat Sub Rec Fac Fac Res Res Qua Frg Acc Traps Triggered 4 | . . . . . . . . 2 1 1 Indirectly . | . . . . . . . . . . . Trap Hack Attempts . | . . . . . . . . . . . Triggered . | . . . . . . . . . . . Disarmed . | . . . . . . . . . . . Reprogrammed . | . . . . . . . . . . . Reused 2 | . . 1 1 . . . . . . . Traps Extracted . | . . . . . . . . . . . Installed 2 | . . 1 1 . . . . . . . Triggered . | . . . . . . . . . . . Most Traps Carried 1 | . . 1 1 . . . . . . . Machines | -11 -10 -10 -7 -5 -4 -3 -2 -2 -2 -1 ---------- Run | Yrd Mat Sub Rec Fac Fac Res Res Qua Frg Acc Machines Disabled 8 | . . 1 . 1 1 1 . 1 . 3 Max in Single Turn 1 | . . 1 . 1 1 1 . 1 . 1 Garrison Access 3 | . . . . 1 . 2 . . . . Energy Cycler 1 | . . . . . . . . . . 1 Machines Repaired . | . . . . . . . . . . . Machines Dismantled . | . . . . . . . . . . . Machines Sabotaged . | . . . . . . . . . . . Overloaded Fab Kills . | . . . . . . . . . . . Hacking | -11 -10 -10 -7 -5 -4 -3 -2 -2 -2 -1 --------- Run | Yrd Mat Sub Rec Fac Fac Res Res Qua Frg Acc Machines Accessed 42 | . 5 1 10 3 2 9 1 . 2 9 Terminals 22 | . 3 . 6 1 2 3 . . 2 5 Fabricators 2 | . . . . 1 . . . . . 1 Repair Stations 3 | . 1 . . . . 1 . . . 1 Recycling Units 7 | . 1 . 3 1 . 2 . . . . Scanalyzers . | . . . . . . . . . . . Garrison Access 6 | . . . . . . 3 1 . . 2 Total Hacks 100 | . 15 1 23 5 7 21 1 . 5 22 Successful 30 | . 8 1 8 1 1 7 . . 4 . Failed 68 | . 6 . 14 4 6 14 1 . 1 22 Catastrophic 21 | . 1 . . 3 3 6 . . . 8 Database Lockouts 2 | . 1 . 1 . . . . . . . Manual 43 | . 9 . 12 1 7 7 1 . 1 5 Terminals 61 | . 10 . 15 2 7 9 . . 5 13 Fabricators 5 | . . . . 2 . . . . . 3 Repair Stations 7 | . 3 . . . . 1 . . . 3 Recycling Units 16 | . 2 . 6 1 . 7 . . . . Scanalyzers . | . . . . . . . . . . . Garrison Access 8 | . . . . . . 4 1 . . 3 Terminal Hacks 18 | . 5 1 5 1 1 2 . . 3 . Robot Analysis 2 | . 1 . 1 . . . . . . . Prototype ID Bank 2 | . . . 2 . . . . . . . Level Access Points 3 | . . . . . 1 1 . . 1 . Terminal Index 1 | . . . . . . . . . 1 . Repair Station Index 1 | . 1 . . . . . . . . . Unreport Threat 1 | . . . . . . 1 . . . . Locate Traps 1 | . . . . . . . . . 1 . Recall Investigation 1 | . 1 . . . . . . . . . Zone Layout 3 | . 2 . . 1 . . . . . . Proto ID Catalog 1 | . . 1 . . . . . . . . Release Object 2 | . . . 2 . . . . . . . Fabricator Hacks . | . . . . . . . . . . . Repair Station Hacks 1 | . 1 . . . . . . . . . Scan Component 1 | . 1 . . . . . . . . . Recycling Unit Hacks 3 | . 1 . 1 . . 1 . . . . Retrieve Components 3 | . 1 . 1 . . 1 . . . . Scanalyzer . | . . . . . . . . . . . Garrison Access Hacks 2 | . . . . . . 2 . . . . Seal Access 2 | . . . . . . 2 . . . . Unauthorized Hacks 6 | . 1 . 2 . . 2 . . 1 . Terminals 2 | . . . . . . 1 . . 1 . Track 1 | . . . . . . . . . 1 . Assimilate 1 | . . . . . . 1 . . . . Fabricators . | . . . . . . . . . . . Repair Stations . | . . . . . . . . . . . Recycling Units 4 | . 1 . 2 . . 1 . . . . Reject 1 | . . . . . . 1 . . . . Tunnel 3 | . 1 . 2 . . . . . . . Scanalyzers . | . . . . . . . . . . . Garrison Access . | . . . . . . . . . . . Data Cores Recovered . | . . . . . . . . . . . Used . | . . . . . . . . . . . Hacking Detections 34 | . 4 . 6 3 2 7 1 . 2 9 Full Trace Events 10 | . 1 . 1 1 2 1 . . . 4 Feedback Events 3 | . . . . 1 . 1 . . . 1 Corruption 2 | . . . . 1 . . . . . 1 Hackware Fried 1 | . . . . . . 1 . . . . Feedback Blocked . | . . . . . . . . . . . Robot Schematics Acquired . | . . . . . . . . . . . Robots Built . | . . . . . . . . . . . Authchips . | . . . . . . . . . . . Time . | . . . . . . . . . . . Total Robot Build Rating . | . . . . . . . . . . . Part Schematics Acquired . | . . . . . . . . . . . Parts Built . | . . . . . . . . . . . Authchips . | . . . . . . . . . . . Time . | . . . . . . . . . . . Total Part Build Rating . | . . . . . . . . . . . Parts Repaired . | . . . . . . . . . . . Time . | . . . . . . . . . . . Parts Recycled . | . . . . . . . . . . . Recycled Matter . | . . . . . . . . . . . Retrieved Matter . | . . . . . . . . . . . Retrieved Components 5 | . 3 . . . . 2 . . . . Parts Scanalyzed . | . . . . . . . . . . . Part Schematics Acquired . | . . . . . . . . . . . Parts Damaged . | . . . . . . . . . . . Bothacking | -11 -10 -10 -7 -5 -4 -3 -2 -2 -2 -1 ------------ Run | Yrd Mat Sub Rec Fac Fac Res Res Qua Frg Acc Used RIF Installer . | . . . . . . . . . . . Robots Hacked . | . . . . . . . . . . . Non-combat . | . . . . . . . . . . . Combat . | . . . . . . . . . . . Robot Hacks Applied . | . . . . . . . . . . . Relay Couplers Released 1 | . . . . 1 . . . . . . Machine Destruction 1 | . . . . 1 . . . . . . Fabnet Peak Effective % . | . . . . . . . . . . . Robots Rewired 1 | . . . . 1 . . . . . . Allies Hacked 1 | . . . . . . 1 . . . . Hacks Repelled . | . . . . . . . . . . . Allies | -11 -10 -10 -7 -5 -4 -3 -2 -2 -2 -1 -------- Run | Yrd Mat Sub Rec Fac Fac Res Res Qua Frg Acc Total Allies 2 | . . . . 1 . 1 . . . . Largest Group 1 | . . . . 1 . 1 . . . . Highest-Rated Group 41 | . . . . 41 . 10 . . . . Highest-Rated Ally 41 | . . . . 41 . 10 . . . . Total Orders . | . . . . . . . . . . . Ally Attacks 2 | . . . . 2 . . . . . . Total Damage 68 | . . . . 68 . . . . . . Kills . | . . . . . . . . . . . Allies Corrupted . | . . . . . . . . . . . Allies Melted . | . . . . . . . . . . . Intel | -11 -10 -10 -7 -5 -4 -3 -2 -2 -2 -1 ------- Run | Yrd Mat Sub Rec Fac Fac Res Res Qua Frg Acc Active Infowar (turns) 3232 | . 315 1886 . 398 . 69 67 82 . 415 Optics 192 | . . . . 192 . . . . . . Sensors 373 | . . . . . . 69 67 82 . 155 IFF 140 | . . . . 140 . . . . . . Structural 206 | . . . . 206 . . . . . . Seismic 2214 | . 315 1886 . . . . . . . 13 Triangulation 247 | . . . . . . . . . . 247 Robot Analysis Total 2 | . 1 . 1 . . . . . . . Derelict Logs Recovered 2 | . . 2 . . . . . . . . Drone Launches . | . . . . . . . . . . . Drone Recoveries . | . . . . . . . . . . . Exploration | -11 -10 -10 -7 -5 -4 -3 -2 -2 -2 -1 ------------- Run | Yrd Mat Sub Rec Fac Fac Res Res Qua Frg Acc Turns Passed 8840 | 153 998 2993 1492 1635 133 435 67 221 59 654 Spaces Moved 5418 | 86 434 1120 630 667 183 807 68 247 104 1072 Core 2058 | 5 . . . 198 183 240 12 244 104 1072 Treads 2457 | 81 434 1120 495 324 . . . 3 . . Legs 219 | . . . 135 84 . . . . . . Wheels . | . . . . . . . . . . . Hover 133 | . . . . 61 . 16 56 . . . Flight 551 | . . . . . . 551 . . . . Fastest Speed 42 | 50 160 240 100 50 50 42 70 50 50 50 Average Speed 138 | 153 184 243 197 193 52 47 75 81 50 50 Slowest Speed 355 | 160 240 250 250 355 150 100 100 176 50 50 Overloaded Moves . | . . . . . . . . . . . Propulsion Burnouts . | . . . . . . . . . . . Robots Hopped 14 | . . . . . . 14 . . . . Potential Cave-ins 2 | . . 2 . . . . . . . . Cave-ins Triggered . | . . . . . . . . . . . Exploration Rate (%) 33 | 4 59 63 92 24 9 24 3 43 8 42 Regions Visited 10 Branch Regions 4 Pre-discovered Areas 4 | . 1 1 2 . . . . . . . Known Exits Taken 5 | . . . . . 1 1 1 1 1 . Unknown Exits Taken 5 | 1 1 1 1 1 . . . . . . Scrap Searched . | . . . . . . . . . . . Spaces Dug 19 | . 2 4 . 11 1 . . . . 1 Terrain Destroyed 77 | . 2 4 . 44 1 . . . . 26 Melee 1 | . . . . . 1 . . . . . Projectile 9 | . 2 4 . . . . . . . 3 AOE 67 | . . . . 44 . . . . . 23 Terrain Rammed . | . . . . . . . . . . . Walls Destroyed . | . . . . . . . . . . . Machines Disabled . | . . . . . . . . . . . Actions | -11 -10 -10 -7 -5 -4 -3 -2 -2 -2 -1 --------- Run | Yrd Mat Sub Rec Fac Fac Res Res Qua Frg Acc Total 6415 | 102 566 1301 867 909 205 840 83 264 108 1170 Wait 537 | 2 67 90 185 109 4 15 13 7 2 43 Move 5383 | 85 433 1119 629 667 182 781 67 246 103 1071 Hop 11 | . . . . . . 11 . . . . Pick Up 51 | 8 10 16 5 5 1 3 . 2 . 1 Fast Attach 70 | 6 3 . 1 15 2 17 2 2 . 22 Attach 21 | . 1 2 1 5 1 4 . 2 . 5 Detach 23 | . 3 . 5 6 . 3 . 1 . 5 Swap 32 | . 7 23 2 . . . . . . . Drop 60 | . 9 10 24 6 1 4 1 2 . 3 Fire 191 | 1 32 40 12 91 6 1 . 1 . 7 Melee 5 | . . . . . 5 . . . . . Ram 3 | . . . . . 3 . . . . . Kick 5 | . . . . . . . . . . 5 Crush 16 | . 1 . 1 1 . 1 . 1 3 8 Escape Stasis . | . . . . . . . . . . . Rewire 4 | . . . . 4 . . . . . . Trap 2 | . . 1 1 . . . . . . . Miscellaneous 1 | . . . 1 . . . . . . . Route ------- -11/Scrapyard -10/Materials (discovered 3 exits: [*Min x2] / *Sub) -10/Subcaves (discovered 2 exits: [*Mat] / *Rec) -7/Recycling -5/Factory -4/Factory (discovered 4 exits: *Res x4) -3/Research (discovered 3 exits: *Res x3) -2/Research -2/Quarantine (discovered 2 exits: [*Sec] / *Frg) -2/Protoforge -1/Access To Epsilon Eridani History --------- Turn | Location | Event 7 | -11/Scrapyard | Discovered new exit (range 15) 154 | -11/Scrapyard | Entered Materials 190 | -10/Materials | Central database locked down 309 | -10/Materials | Build established: Mutant 530 | -10/Materials | Discovered new exit (range 8) 759 | -10/Materials | Discovered new exit (range 13) 1123 | -10/Materials | Discovered new exit (range 13) 1152 | -10/Materials | Entered Subcaves 1185 | -10/Subcaves | Learned Materials non-interactive machine intel 2362 | -10/Subcaves | Discovered new exit (range 9) 2386 | -10/Subcaves | Learned location of Storage (-7) 3065 | -10/Subcaves | Shifting Twisted Machinery released Sub. Laser 3067 | -10/Subcaves | Shifting Twisted Machinery released Spk. Treads 3518 | -10/Subcaves | Discovered new exit (range 14) 3527 | -10/Subcaves | Core integrity fell below 50% 3691 | -10/Subcaves | Shifting Twisted Machinery released Scrap Shield 3692 | -10/Subcaves | Shifting Twisted Machinery released Humpback 3869 | -10/Subcaves | Visited 4L-MR0's lab 3916 | -10/Subcaves | Found Cargo Legs 4145 | -10/Subcaves | Entered Recycling 4489 | -7/Recycling | Discovered new exit (range 15) 5029 | -7/Recycling | Scanned before Scraplab entrance 5052 | -7/Recycling | Angered Scraplab inhabitants 5228 | -7/Recycling | Found Prototype Device 5228 | -7/Recycling | Identified Scrap Engine 5602 | -7/Recycling | Build established: Construct 5637 | -7/Recycling | Entered Factory 5637 | -5/Factory | Evolved 10 slots: Power x1, Propulsion x2, Utility x6, Weapon x1 5927 | -5/Factory | Build established: Mutant 6088 | -5/Factory | Found Launcher Loader 6444 | -5/Factory | Lost 4 parts (1p1n1u1w) 6565 | -5/Factory | Cargo convoy interrupted 7040 | -5/Factory | Lost 5 parts (1p1n2u1w) 7134 | -5/Factory | Core integrity fell below 50% 7266 | -5/Factory | Discovered new exit (range 7) 7271 | -5/Factory | Core integrity fell below 20% 7272 | -5/Factory | Entered another Factory area 7272 | -4/Factory | Evolved 2 slots: Propulsion x1, Utility x1 7303 | -4/Factory | Lost 4 parts (1n3u) 7379 | -4/Factory | Identified exit to Research 7403 | -4/Factory | Lost 3 parts (1u2w) 7405 | -4/Factory | Entered Research 7405 | -3/Research | Evolved 2 slots: Propulsion x2 7594 | -3/Research | Spotted B-86 Titan 7621 | -3/Research | Spotted B-86 Titan 7661 | -3/Research | Spotted B-86 Titan 7664 | -3/Research | Lost 3 parts (3u) 7732 | -3/Research | Lost 3 parts (1n2u) 7754 | -3/Research | Identified exit to Research 7754 | -3/Research | Adv. Hacking Suite fried by hacking feedback 7840 | -3/Research | Entered another Research area 7840 | -2/Research | Evolved 2 slots: Propulsion x1, Utility x1 7851 | -2/Research | Lost 3 parts (2n1u) 7866 | -2/Research | Discovered new exit (range 10) 7906 | -2/Research | Identified exit to Quarantine 7907 | -2/Research | Entered Quarantine 7968 | -2/Quarantine | Spotted Alpha 7 7987 | -2/Quarantine | Found Alien Slashing Weapon 7987 | -2/Quarantine | Identified Sigix Broadsword 8092 | -2/Quarantine | Spotted Fortress 8126 | -2/Quarantine | Discovered new exit (range 6) 8126 | -2/Quarantine | Discovered new exit (range 7) 8128 | -2/Quarantine | Identified exit to Protoforge 8128 | -2/Quarantine | Entered Protoforge 8143 | -2/Protoforge | Superfortress began startup sequence 8159 | -2/Protoforge | Identified exit to Access 8187 | -2/Protoforge | Entered Access 8187 | -1/Access | Evolved 2 slots: Utility x2 8217 | -1/Access | Lost 4 parts (3n1u) 8350 | -1/Access | Spotted B-99 Colossus 8439 | -1/Access | Energy Cycler disabled 8624 | -1/Access | Spotted B-99 Colossus 8628 | -1/Access | Core integrity fell below 50% 8655 | -1/Access | Spotted B-99 Colossus 8778 | -1/Access | Lost 3 parts (3n) 8823 | -1/Access | Core integrity fell below 20% 8838 | -1/Access | Discovered new exit (range 6) 8840 | -1/Access | Identified exit to Surface 8841 | *** | Escaped! Last Messages --------------- 08798_ H-88 Terminator destroyed. 08801_ Slug penetrates Wall. 08801_ Slug penetrates Door. 08801_ Wave Collapse Detector explodes. 08801_ R-10 Processor destroyed. 08802_ The unstable cave ceiling collapses. 08808_ Myomer Leg destroyed. 08811_ ALERT: Potential suspicious activity detected, Programmers report to Access Zone 8D. 08814_ W-44 Eye sends out distress signal. 08819_ Wave Collapse Detector explodes. 08819_ Adv. Medium Treads destroyed. 08820_ U-05 Engineer lays Concrete. 08823_ Cmb. Linear Gravjet destroyed. 08826_ Adv. Medium Treads destroyed. 08830_ Kicked G-73 Enforcer out of the way. 08835_ System corrupted: Heat flow error (+263). 08838_ The Access Shell folds into the floor. 08838_ EXIT=FOUND 08840_ EXIT=IDENTIFIED: SURFACE Map ----- +----------------------------------------------------+ | ???????# # #?????????????????????????????? | | ???????# + #?????????????????????????????? | | ???????# # #?????????????????????????????? | | ???????# # #?????????????????????????????? | | ???????# # ######+#??????????????????????? | | ???????# ###????????????????????? | | ???????# +????????????????? | | ???????####### # ###????????????????????? | | ??########### #??????????????????????? | | ? #??????????????????????? | | ? #??????????????????????? | | ? #############+########?? | | ? p p #?? | | ? # # #?? | | ?? """ """??# ############### ##### #?? | | ???????S"????# #?????????????# #????????? | | ?????????????###########?????????????# #????????? | | ?????????????????????????????????????# #????????? | | ?????????????????????????????????????#gs#????????? | | ?????????????????????????????###?????# g#????????? | | ????????????????????########## ####### #????????? | | ????????????????????" ss #????????? | | ????????????????????" #????????? | | ????????????????????" A #????????? | | ????????????????????" #????????? | | ????????????????????" "@ #????????? | | ????????????????????" "" #????????? | | ????????????????????" #????????? | | ????????????????????" #????????? | | ????????????????????" """ """ #????????? | | ????????????????????" """T""" #????????? | | ????????????????????########## ####### #????????? | | ?????????????????????????????###?????# #????????? | | ?????????????????????????????????????? #????????? | | ?????????????????????????????????????? #????????? | | ?????????????????????????????????????? #????????? | | ?????????????????????????????????????? ?????????? | | ?????????????????????????????????????????????????? | | ?????????????????????????????????????????????????? | | ?????????????????????????????????????????????????? | | ?????????????????????????????????????????????????? | | ?????????????????????????????????????????????????? | | ?????????????????????????????????????????????????? | | ?????????????????????????????????????????????????? | | ?????????????????????????????????????????????????? | | ?????????????????????????????????????????????????? | | ?????????????????????????????????????????????????? | | ?????????????????????????????????????????????????? | | ?????????????????????????????????????????????????? | | ?????????????????????????????????????????????????? | +----------------------------------------------------+ Best States ------------- Heat Dissipation 85 Energy Generation 21 Energy Capacity 350 Matter Stores 300 Matter Capacity 300 Sight Range 22 Robot Scan Range 16 Terrain Scan Density 110 Armor Coverage 225 Power Shielding 66 Phase Shifting 5 Evasion (%) 65 Target Analysis 9 Core Analysis 6 Recoil Reduction 6 Offensive Hacking 14 Defensive Hacking 24 Item Schematics ----------------- None Robot Schematics ------------------ None Fabricated ------------ Nothing Repaired ---------- Nothing Alien Tech Used ----------------- Sigix Broadsword Achievements -------------- None Challenges ------------ None Game ------ Seed DirectedWarpClaymores Manual? 0 Play Time 00:59:45 Cumulative 1851.8 hours Start 2025.05.06 @ 03:09:13 End 2025.05.06 @ 04:07:51 Sessions 1 Manual Loads 0 Difficulty Rogue Special Mode None Game No. 1233 Rogue 1229 Adventurer 4 Explorer 0 Win Type 0 Total 238 Types 177/11/19/10/3/1/4/8/4/1 Lore% 98 Gallery% 93 Achievement% 98 Wizard Run 0 Options --------- Layout 2 ASCII 0 Keyboard 1 Movement Vi Keybinds 0 Fullscreen 0 Font 24/Terminus Map View 59x48 Zoom Use 0% Tactical HUD 1 Map Filters NONE Filters NONE Steam 1 RUN: 7157c8e3-efb4-48f8-bf79-b8c27d3e5fc8